bitfinex-derivatives/quotes_SOLF0:USTF0_20260102
["timestamp","ask_amount","ask_price","bid_price","bid_amount"]
[1767340393172,0.05425695,127.08,127.05,0.37598343]
[1767340393360,7.0905,127.1,127.05,0.37598343]
[1767340394377,7.14502318,127.09,127.05,0.37598343]
[1767340396772,7.0913,127.08,127.05,0.05404019]
[1767340404277,7.0913,127.08,127.05,0.37598343]
[1767340404482,7.14492318,127.09,127.05,0.37598343]
[1767340406981,100.1296,127.11,127.06,0.32639821]
[1767340408071,0.05513837,127.1,127.06,0.32639821]
[1767340411885,0.05513837,127.1,127.05,0.05404019]
[1767340412085,7.14523837,127.1,127.05,0.05404019]
[1767340414186,7.0906,127.09,127.05,0.05404019]
[1767340423490,0.05513837,127.1,127.05,0.3804384]
[1767340423688,0.05513837,127.1,127.06,1.54365494]
[1767340423891,0.05513837,127.1,127.06,1.87005315]
[1767340424791,0.05513837,127.1,127.06,8.96215315]
[1767340426191,0.05513837,127.1,127.07,7.41809821]
[1767340426392,93.04,127.12,127.08,1.87005315]
[1767340426895,7.0884,127.13,127.08,1.87005315]
[1767340427394,0.05882749,127.12,127.09,0.04975907]
[1767340428499,0.05882749,127.12,127.09,0.37615728]
[1767340445028,7.14802749,127.12,127.09,0.04975907]
[1767340459039,0.05882749,127.12,127.09,0.38514516]
[1767340459241,93.02,127.15,127.09,0.38514516]
[1767340460141,0.05028991,127.13,127.09,0.38514516]
[1767340462943,7.13878991,127.13,127.09,0.04975907]
[1767340469242,7.089,127.12,127.09,0.04975907]
[1767340487465,110.32088991,127.13,127.04,0.32032856]
[1767340487665,110.2826,127.11,127.04,0.32032856]
[1767340487967,203.3026,127.11,127.03,210.92478845]
[1767340488167,203.3026,127.11,127.03,211.24511701]
[1767340488475,0.05335852,127.08,127.06,0.05423769]
[1767340488666,7.14495852,127.08,127.06,0.05423769]
[1767340488868,7.14495852,127.08,127.03,211.24511701]
[1767340489069,7.0919,127.07,127.03,211.24511701]
[1767340489867,7.0919,127.07,127.04,0.05964053]
[1767340501080,7.14455852,127.08,127.04,0.05964053]
[1767340507281,0.05335852,127.08,127.04,0.05964053]
[1767340541924,0.05335852,127.08,127.06,0.33107883]
[1767340542130,93.04,127.13,127.06,0.33107883]
[1767340542528,1.54356873,127.15,127.08,0.33107883]
[1767340542727,93.04,127.14,127.08,0.33107883]
[1767340543223,0.05420172,127.12,127.1,0.05963736]
[1767340552239,93.04,127.14,127.1,0.05963736]
[1767340553343,0.04693594,127.13,127.1,0.05963736]
[1767340554240,7.13603594,127.13,127.1,0.05963736]
[1767340555442,7.13603594,127.13,127.07,0.33107883]
[1767340556543,7.13603594,127.13,127.09,0.05082941]
[1767340557147,7.0897,127.12,127.09,0.05082941]
[1767340560744,7.0897,127.12,127.07,0.33107883]
[1767340561551,1.59050467,127.13,127.08,0.05838976]
[1767340562352,7.0907,127.11,127.08,0.05838976]
[1767340563954,7.0908,127.1,127.08,0.05838976]
[1767340564150,7.1405941,127.1,127.08,0.05838976]
[1767340567660,0.0497941,127.1,127.08,0.05838976]
[1767340580970,0.0497941,127.1,127.04,0.31551901]
[1767340581170,93.02,127.09,127.04,0.31551901]
[1767340581876,0.05490816,127.08,127.05,0.05709119]
[1767340582477,7.14720816,127.08,127.05,0.05709119]
[1767340602395,7.0924,127.07,127.05,0.05709119]
[1767340608398,7.0924,127.07,127.04,1.02e-05]
[1767340609399,7.0924,127.07,127.04,0.05597502]
[1767340612101,0.05490816,127.08,127.04,0.05597502]
[1767340616806,0.05490816,127.08,127.05,0.34308849]
[1767340617005,102.54279308,127.11,127.05,0.34308849]
[1767340617805,102.54279308,127.11,127.05,7.43648849]
[1767340618005,0.05792991,127.09,127.07,0.05496651]
[1767340621109,7.0896,127.13,127.07,0.398055]
[1767340621804,7.0896,127.13,127.07,7.490355]
[1767340622109,7.0896,127.13,127.08,0.34308849]
[1767340623107,0.05660304,127.12,127.08,0.34308849]
[1767340624009,0.05660304,127.12,127.09,0.34308849]
[1767340624211,0.00705228,127.12,127.09,0.34308849]
[1767340628112,0.00705228,127.12,127.09,7.43438849]
[1767340629815,0.00705228,127.12,127.1,0.34308849]
[1767340630003,7.0879,127.16,127.1,0.34308849]
[1767340630916,0.0513821,127.14,127.12,0.05596215]
[1767340632824,5.41716379,127.18,127.12,0.39905064]
[1767340633924,5.41716379,127.18,127.13,7.43198849]
[1767340635728,5.41716379,127.18,127.14,7.0884]
[1767340635927,5.41716379,127.18,127.15,0.05935742]
[1767340637531,93.02,127.2,127.15,7.49024591]
[1767340644739,93.02,127.2,127.16,7.0873]
[1767340645733,7.0841,127.22,127.16,7.0873]
[1767340645938,100.0641,127.22,127.18,0.0556794]
[1767340646338,102.47629308,127.22,127.18,0.0556794]
[1767340651745,9.49629308,127.22,127.18,0.0556794]
[1767340651947,92.98,127.21,127.18,0.0556794]
[1767340656445,100.0647,127.21,127.18,0.0556794]
[1767340656659,2.41219308,127.18,127.11,0.31738483]
[1767340656846,95.37219308,127.18,127.11,0.31738483]
[1767340657150,95.37219308,127.18,127.12,7.0891]
[1767340657548,0.0556794,127.16,127.14,0.05734804]
[1767340657748,0.0556794,127.16,127.12,7.0891]
[1767340658756,0.0556794,127.16,127.13,0.0514544]
[1767340662751,0.0556794,127.16,127.13,0.36883923]
[1767340662956,0.0556794,127.16,127.13,7.45783923]
[1767340668862,94.50172764,127.18,127.14,7.088]
[1767340669159,92.96,127.18,127.14,7.40538483]
[1767340669551,7.0851,127.21,127.15,0.31738483]
[1767340669751,1.54172764,127.19,127.15,0.31738483]
[1767340669963,0.05677816,127.18,127.16,0.05300126]
[1767340670355,1.5985058,127.18,127.13,0.31738483]
[1767340671261,1.5985058,127.18,127.14,0.05886441]
[1767340671762,0.05677816,127.18,127.14,7.14736441]
[1767340675162,0.05677816,127.18,127.14,0.05886441]
[1767340685368,0.05677816,127.18,127.14,0.39568192]
[1767340685668,7.0846,127.22,127.16,7.42411751]
[1767340685863,7.0846,127.22,127.16,0.33681751]
[1767340686668,0.05173009,127.2,127.18,0.05874467]
[1767340688573,0.05173009,127.2,127.15,0.33681751]
[1767340689577,0.05173009,127.2,127.16,0.05099643]
[1767340691578,8.67865773,127.2,127.16,0.05099643]
[1767340695184,7.0858,127.19,127.16,0.05099643]
[1767340702589,8.62822764,127.18,127.11,7.42651751]
[1767340702784,8.62822764,127.18,127.12,0.33681751]
[1767340703690,0.05456591,127.16,127.14,0.05757119]
[1767340716301,7.14206591,127.16,127.14,0.05757119]
[1767340723104,0.05456591,127.16,127.14,0.05757119]
[1767340725805,7.14196591,127.16,127.11,0.33308618]
[1767340726806,7.14196591,127.16,127.12,0.05720066]
[1767340729011,7.088,127.15,127.12,0.05720066]
[1767340730411,7.088,127.15,127.1,0.33308618]
[1767340731311,7.088,127.15,127.11,0.05223686]
[1767340747818,0.05456591,127.16,127.11,0.05223686]
[1767340748020,0.05456591,127.16,127.11,0.39523824]
[1767340748824,7.088,127.15,127.11,0.39523824]
[1767340756119,7.088,127.15,127.11,0.05223686]
[1767340758127,7.14196591,127.16,127.11,0.05223686]
[1767340758730,7.14196591,127.16,127.11,0.39523824]
[1767340764532,0.05456591,127.16,127.11,0.05223686]
[1767340764737,2.40863438,127.15,127.07,0.34300138]
[1767340765034,205.65183438,127.17,127.07,0.34300138]
[1767340765737,0.05366333,127.13,127.11,0.05995447]
[1767340768140,7.14276333,127.13,127.11,0.05995447]
[1767340777445,7.14276333,127.13,127.07,0.34300138]
[1767340778447,7.14276333,127.13,127.09,0.0566842]
[1767340778954,7.0897,127.12,127.09,0.0566842]
[1767340784453,0.05366333,127.13,127.09,0.0566842]
[1767340784454,8.68573477,127.13,127.09,0.0566842]
[1767340788060,7.14286333,127.13,127.09,0.0566842]
[1767340790855,0.05366333,127.13,127.09,0.39362336]
[1767340791046,94.56287144,127.16,127.09,0.39362336]
[1767340791760,7.088,127.15,127.09,7.48482336]
[1767340792059,0.0544926,127.13,127.09,7.48482336]
[1767340792861,7.0874,127.16,127.11,0.33693916]
[1767340793361,7.0874,127.16,127.11,1.8798106]
[1767340793662,93.02,127.17,127.11,8.9699106]
[1767340793859,0.05083395,127.15,127.13,0.05037426]
[1767340795267,110.2024,127.22,127.13,1.93018486]
[1767340795468,1.54287144,127.2,127.13,1.8798106]
[1767340796269,0.05637662,127.18,127.15,0.05052595]
[1767340801277,7.14307662,127.18,127.15,0.05052595]
[1767340802477,0.05637662,127.18,127.15,0.05052595]
[1767340815481,0.05637662,127.18,127.15,0.37489052]
[1767340823289,0.05637662,127.18,127.15,0.05052595]
[1767340826190,7.14277662,127.18,127.15,0.05052595]
[1767340827790,7.14277662,127.18,127.15,0.36525814]
[1767340828893,0.05637662,127.18,127.15,0.36525814]
[1767340829492,7.0846,127.22,127.15,0.36525814]
[1767340830293,0.05886692,127.2,127.15,0.36525814]
[1767340836691,0.05886692,127.2,127.15,0.05052595]
[1767340837198,7.0858,127.19,127.15,0.05052595]
[1767340837593,0.05886692,127.2,127.15,0.38120912]
[1767340839808,0.05886692,127.2,127.16,0.33068317]
[1767340840501,0.05886692,127.2,127.15,0.05052595]
[1767340841004,7.0858,127.19,127.15,0.05052595]
[1767340841196,0.05886692,127.2,127.15,0.05052595]
[1767340841705,7.0863,127.18,127.15,0.05052595]
[1767340844110,7.14456692,127.2,127.15,0.05052595]
[1767340844413,7.14456692,127.2,127.15,0.38120912]
[1767340849814,0.05886692,127.2,127.16,0.33068317]
[1767340852007,0.05886692,127.2,127.17,0.33068317]
[1767340852312,0.05886692,127.2,127.15,0.38120912]
[1767340853719,7.14406692,127.2,127.15,0.38120912]
[1767340855721,7.14406692,127.2,127.15,0.05052595]
[1767340856017,7.0858,127.19,127.15,0.05052595]
[1767340861121,7.0863,127.18,127.15,0.05052595]
[1767340864622,7.14456692,127.2,127.15,0.05052595]
[1767340864824,7.14456692,127.2,127.15,0.37432569]
[1767340865918,0.05886692,127.2,127.15,0.37432569]
[1767340867826,0.05886692,127.2,127.16,0.32379974]
[1767340868637,7.0841,127.22,127.16,0.32379974]
[1767340869637,0.05959648,127.2,127.18,0.0536246]
[1767340872441,7.0841,127.22,127.18,0.37742434]
[1767340873538,0.05644552,127.21,127.18,0.37742434]
[1767340877940,0.05644552,127.21,127.19,0.32379974]
[1767340878238,7.083,127.24,127.19,0.32379974]
[1767340879331,7.083,127.24,127.2,0.05821827]
[1767340879532,7.0824,127.25,127.2,0.38201801]
[1767340881741,7.0831,127.24,127.2,0.05821827]
[1767340881939,110.1631,127.26,127.2,0.05821827]
[1767340882142,110.1739,127.25,127.16,0.32379974]
[1767340883245,0.05232544,127.22,127.19,0.06031908]
[1767340883841,7.13642544,127.22,127.19,0.06031908]
[1767340887448,0.05232544,127.22,127.13,7.43403067]
[1767340887650,110.2021,127.22,127.13,0.34543067]
[1767340888352,0.05704484,127.19,127.16,0.05579483]
[1767340888749,7.14274484,127.19,127.16,0.05579483]
[1767340892747,0.05704484,127.19,127.16,0.05579483]
[1767340893054,92.94,127.22,127.16,0.4012255]
[1767340893439,100.0244,127.22,127.16,0.4012255]
[1767340893751,7.0844,127.22,127.16,0.4012255]
[1767340893954,0.05225984,127.2,127.16,0.4012255]
[1767340894757,0.05225984,127.2,127.16,7.4885255]
[1767340895050,0.05225984,127.2,127.17,0.34543067]
[1767340917670,7.0845,127.22,127.17,0.34543067]
[1767340927785,7.0836,127.23,127.17,0.34543067]
[1767340927984,7.0836,127.23,127.19,0.05896297]
[1767340938895,92.94,127.26,127.19,0.37032554]
[1767340939795,7.0831,127.24,127.19,0.37032554]
[1767340943699,7.0831,127.24,127.19,0.05896297]
[1767340944293,7.0831,127.24,127.19,0.37032554]
[1767340948598,7.0831,127.24,127.19,0.05896297]
[1767340955106,203.105,127.26,127.19,0.05896297]
[1767340955314,110.1817,127.24,127.13,0.32020486]
[1767340955610,203.1217,127.24,127.13,0.32020486]
[1767340956312,0.05661588,127.2,127.17,0.05124165]
[1767340969127,7.14181588,127.2,127.17,0.05124165]
[1767340973031,7.0859,127.19,127.14,7.0885]
[1767340973231,7.0859,127.19,127.13,7.40930486]
[1767340974032,0.05817723,127.17,127.15,0.04946384]
[1767340975131,0.05817723,127.17,127.11,7.41020486]
[1767340975629,0.05817723,127.17,127.12,0.32020486]
[1767340976134,0.05817723,127.17,127.13,0.05139551]
[1767340980542,0.05817723,127.17,127.13,0.38704229]
[1767340980834,112.60080812,127.23,127.13,0.38704229]
[1767340981036,205.56080812,127.23,127.13,0.33564678]
[1767340981538,112.60080812,127.23,127.13,0.33564678]
[1767340981839,0.05069405,127.19,127.17,0.05405097]
[1767340984043,7.0846,127.22,127.17,0.38969775]
[1767340985041,0.0588235,127.21,127.17,0.38969775]
[1767340991850,0.0588235,127.21,127.18,0.33564678]
[1767340992051,126.71000812,127.29,127.18,2.7430549]
[1767340992355,7.0824,127.26,127.21,0.33564678]
[1767340993056,7.0824,127.26,127.22,0.05651794]
[1767340997864,7.0825,127.25,127.22,0.05651794]
[1767340998053,7.0825,127.25,127.19,0.33564678]
[1767340999063,0.05525791,127.23,127.21,0.05566347]
[1767341000552,7.13915791,127.23,127.17,0.33564678]
[1767341000864,2.40740812,127.25,127.17,0.33564678]
[1767341001564,0.05964621,127.22,127.2,0.05757285]
[1767341002064,0.05964621,127.22,127.12,0.33564678]
[1767341002266,2.40740812,127.19,127.12,0.33564678]
[1767341002866,7.0864,127.18,127.12,0.33564678]
[1767341003362,0.05481264,127.16,127.14,0.05975394]
[1767341003562,0.05481264,127.16,127.1,0.33564678]
[1767341004662,0.05481264,127.16,127.12,0.38916241]
[1767341004867,92.94,127.2,127.12,0.38916241]
[1767341005066,92.94,127.2,127.12,0.33564678]
[1767341005859,0.05565172,127.17,127.15,0.05178972]
[1767341011067,92.94,127.2,127.15,0.39212645]
[1767341012070,0.05711631,127.19,127.15,0.39212645]
[1767341013065,0.05711631,127.19,127.15,0.05178972]
[1767341014772,7.14291631,127.19,127.15,0.05178972]
[1767341027882,0.05711631,127.19,127.15,0.39212645]
[1767341028583,1.54121737,127.21,127.16,7.42773673]
[1767341028784,100.0441,127.22,127.16,7.42773673]
[1767341028989,100.0441,127.22,127.17,0.34033673]
[1767341029182,1.54121737,127.23,127.18,0.34033673]
[1767341029481,7.0835,127.24,127.18,0.34033673]
[1767341029683,0.05706086,127.22,127.2,0.05841385]
[1767341034987,0.05706086,127.22,127.2,0.39875058]
[1767341036397,7.0824,127.25,127.2,0.39875058]
[1767341036793,7.0824,127.25,127.21,0.33200094]
[1767341043704,7.083,127.24,127.2,0.05841385]
[1767341044005,7.083,127.24,127.2,0.39041479]
[1767341047106,92.96,127.27,127.2,0.39041479]
[1767341047297,1.54121737,127.25,127.2,0.39041479]
[1767341048110,8.62381737,127.25,127.2,0.39041479]
[1767341049010,7.083,127.24,127.2,0.39041479]
[1767341051998,92.96,127.27,127.2,0.39041479]
[1767341052205,94.50121737,127.27,127.2,0.39041479]
[1767341052416,94.50121737,127.27,127.2,7.47541479]
[1767341053816,7.0823,127.26,127.2,7.47541479]
[1767341056012,94.50121737,127.27,127.2,0.05841385]
[1767341056219,1.54121737,127.25,127.2,0.05841385]
[1767341056715,92.92,127.26,127.2,0.05841385]
[1767341057014,1.54121737,127.24,127.2,0.05841385]
[1767341057817,8.62471737,127.24,127.2,0.05841385]
[1767341060319,7.083,127.24,127.2,0.39041479]
[1767341060513,92.92,127.26,127.2,0.39041479]
[1767341061822,100.0023,127.26,127.2,0.39041479]
[1767341065723,101.54351737,127.26,127.2,0.39041479]
[1767341065909,100.0023,127.26,127.2,0.39041479]
[1767341070416,92.92,127.26,127.2,7.47521479]
[1767341072524,8.62301737,127.27,127.2,7.47521479]
[1767341073025,8.62301737,127.26,127.2,7.47521479]
[1767341073225,8.62301737,127.26,127.22,0.0545305]
[1767341074024,7.0818,127.26,127.22,0.0545305]
[1767341074227,8.62301737,127.26,127.22,0.0545305]
[1767341076826,7.0818,127.26,127.22,0.0545305]
[1767341077229,8.62301737,127.26,127.22,0.0545305]
[1767341079133,7.0818,127.26,127.22,0.0545305]
[1767341081136,8.62241737,127.28,127.22,0.0545305]
[1767341082034,7.0813,127.27,127.22,0.0545305]
[1767341083834,8.62251737,127.27,127.22,0.0545305]
[1767341084737,7.0813,127.27,127.22,0.0545305]
[1767341085043,8.62251737,127.27,127.22,0.0545305]
[1767341087436,7.0813,127.27,127.22,0.0545305]
[1767341088337,7.0813,127.27,127.22,7.1385305]
[1767341091744,95.32501677,127.29,127.23,7.42320596]
[1767341092035,92.92,127.29,127.25,0.05201351]
[1767341092431,7.0798,127.3,127.25,0.05201351]
[1767341094442,7.0791,127.31,127.25,7.13421351]
[1767341094835,95.32501677,127.32,127.25,0.05201351]
[1767341095845,7.0797,127.3,127.25,0.05201351]
[1767341100533,110.1044,127.33,127.26,0.33759981]
[1767341100534,2.40501677,127.33,127.26,0.33759981]
[1767341100842,95.30501677,127.36,127.28,0.39638033]
[1767341101037,95.30501677,127.36,127.31,0.05849128]
[1767341101233,95.30501677,127.36,127.28,0.33759981]
[1767341101439,2.40501677,127.32,127.24,0.33759981]
[1767341101644,95.30501677,127.32,127.24,0.33759981]
[1767341101944,7.0791,127.31,127.25,0.33759981]
[1767341102345,0.05294675,127.29,127.27,0.05565665]
[1767341103348,7.13324675,127.29,127.27,0.05565665]
[1767341103543,7.13324675,127.29,127.23,0.33759981]
[1767341104445,7.13324675,127.29,127.25,0.05366834]
[1767341107842,0.05294675,127.29,127.25,0.05366834]
[1767341108045,0.05294675,127.29,127.25,0.39126815]
[1767341110544,0.05294675,127.29,127.25,7.47366815]
[1767341111147,0.05294675,127.29,127.25,0.39126815]
[1767341132572,0.05294675,127.29,127.25,7.47356815]
[1767341133872,0.05294675,127.29,127.26,0.32441083]
[1767341141575,7.0791,127.31,127.27,0.32441083]
[1767341141876,109.43901677,127.35,127.27,0.32441083]
[1767341142076,92.88,127.36,127.27,0.32441083]
[1767341142579,0.0520825,127.33,127.3,0.0543253]
[1767341142873,0.0520825,127.33,127.27,0.32441083]
[1767341143077,205.36481677,127.36,127.27,0.32441083]
[1767341143078,2.40501677,127.34,127.27,0.32441083]
[1767341143576,7.0791,127.31,127.27,0.32441083]
[1767341143979,0.05087171,127.3,127.28,0.05251762]
[1767341149582,7.13057171,127.3,127.28,0.05251762]
[1767341157588,7.13057171,127.3,127.26,0.32441083]
[1767341158386,7.13057171,127.3,127.24,7.0829]
[1767341158387,0.05087171,127.3,127.24,0.34172378]
[1767341158582,1.5891166,127.3,127.26,0.05402373]
[1767341159789,7.0807,127.29,127.26,0.05402373]
[1767341164686,7.13047171,127.3,127.26,0.05402373]
[1767341169388,7.0803,127.29,127.26,0.05402373]
[1767341179103,7.13057171,127.3,127.26,0.05402373]
[1767341180602,124.2173,127.38,127.27,0.34172378]
[1767341180803,1.53824489,127.35,127.27,1.87996867]
[1767341181003,1.53824489,127.34,127.27,0.34172378]
[1767341181203,7.0781,127.33,127.27,0.34172378]
[1767341181706,7.0781,127.33,127.27,1.87996867]
[1767341181895,0.05257166,127.31,127.29,0.05308314]
[1767341186403,7.0772,127.35,127.29,1.93608493]
[1767341186807,7.0772,127.35,127.29,0.39784004]
[1767341187305,7.0774,127.34,127.29,0.05308314]
[1767341187705,0.05603593,127.33,127.29,0.05308314]
[1767341189909,0.05603593,127.33,127.31,1.88300179]
[1767341190110,0.05603593,127.33,127.31,0.3447569]
[1767341190315,7.0759,127.37,127.31,0.3447569]
[1767341190510,94.41824489,127.38,127.31,0.3447569]
[1767341190709,1.53824489,127.37,127.31,0.3447569]
[1767341191009,7.0763,127.36,127.31,0.3447569]
[1767341191210,1.53824489,127.36,127.29,0.3447569]
[1767341191410,94.41824489,127.36,127.31,0.05668085]
[1767341191718,110.0674,127.37,127.31,0.05668085]
[1767341192013,1.53824489,127.35,127.31,0.05668085]
[1767341192913,7.0774,127.34,127.31,0.05668085]
[1767341194511,7.0774,127.34,127.27,8.96420179]
[1767341194716,7.0774,127.34,127.28,0.3447569]
[1767341195518,0.05746609,127.32,127.3,0.05677104]
[1767341203630,0.05746609,127.32,127.3,0.40152794]
[1767341204026,7.0768,127.35,127.3,0.40152794]
[1767341205341,99.9363,127.36,127.3,0.40152794]
[1767341205527,1.53824489,127.39,127.31,1.88300179]
[1767341205839,92.86,127.39,127.34,0.39624899]
[1767341206339,7.0747,127.39,127.34,0.39624899]
[1767341215348,7.0752,127.38,127.34,0.39624899]
[1767341220248,7.0747,127.39,127.34,0.39624899]
[1767341220449,92.84,127.41,127.34,7.47354899]
[1767341220950,99.914,127.41,127.35,0.33599546]
[1767341221153,99.914,127.41,127.37,0.0594096]
[1767341221447,7.0747,127.39,127.37,0.0594096]
[1767341221948,7.0741,127.4,127.37,0.0594096]
[1767341222648,7.0746,127.39,127.37,0.0594096]
[1767341222847,7.0746,127.39,127.35,0.33599546]
[1767341223150,110.0427,127.4,127.32,0.33599546]
[1767341223750,0.05428244,127.37,127.35,0.05277619]
[1767341235060,212.16063702,127.42,127.35,0.05277619]
[1767341235763,7.0748,127.39,127.35,0.05277619]
[1767341242261,7.0753,127.38,127.35,0.05277619]
[1767341251568,102.13393702,127.42,127.35,0.44582392]
[1767341251774,9.31393702,127.42,127.36,0.39304773]
[1767341252069,9.31393702,127.42,127.38,0.04989658]
[1767341252273,9.31393702,127.42,127.38,0.44294431]
[1767341263880,9.31393702,127.42,127.38,7.51804431]
[1767341264181,9.31393702,127.42,127.39,0.39304773]
[1767341265276,8.06857997,127.42,127.39,0.39304773]
[1767341265579,7.0717,127.45,127.39,7.46744773]
[1767341265880,7.0717,127.45,127.41,0.05342261]
[1767341278193,7.0719,127.44,127.41,0.05342261]
[1767341280092,1.53472332,127.46,127.41,0.05342261]
[1767341280292,7.0713,127.45,127.41,0.05342261]
[1767341302417,7.0707,127.47,127.41,0.05342261]
[1767341304220,7.071,127.46,127.41,0.05342261]
[1767341308023,7.0713,127.45,127.41,0.05342261]
[1767341310625,1.53472332,127.46,127.41,0.05342261]
[1767341311823,7.072,127.44,127.41,0.05342261]
[1767341312318,1.53472332,127.44,127.36,2.00581917]
[1767341312522,1.53472332,127.43,127.36,2.00581917]
[1767341312725,202.7605,127.45,127.36,0.47109585]
[1767341313021,94.29472332,127.45,127.37,2.00581917]
[1767341313220,0.05095944,127.42,127.4,0.05136303]
[1767341335143,0.05095944,127.42,127.4,7.12536303]
[1767341341042,0.05095944,127.42,127.4,7.60812037]
[1767341353146,0.05095944,127.42,127.4,0.05136303]
[1767341356454,0.05095944,127.42,127.4,7.60812037]
[1767341365468,7.0707,127.46,127.4,7.60812037]
[1767341366476,0.02144291,127.44,127.4,7.60812037]
[1767341370772,0.02144291,127.44,127.41,0.52239074]
[1767341396602,7.0703,127.47,127.42,0.52387535]
[1767341396896,1.5348268,127.51,127.44,0.52387535]
[1767341397104,7.0684,127.51,127.45,0.52387535]
[1767341397594,94.3148268,127.52,127.45,0.52387535]
[1767341397800,1.5348268,127.51,127.47,0.05478446]
[1767341398801,7.0691,127.49,127.47,0.05478446]
[1767341401106,7.0685,127.5,127.47,0.05478446]
[1767341401507,7.0685,127.5,127.47,0.57865981]
[1767341402304,7.0691,127.49,127.47,0.57865981]
[1767341402910,1.5348268,127.51,127.47,0.05478446]
[1767341403607,7.0695,127.49,127.45,0.52387535]
[1767341404303,7.0697,127.48,127.45,0.52387535]
[1767341404708,7.11941952,127.48,127.45,0.57935842]
[1767341415214,7.11941952,127.48,127.45,0.05548307]
[1767341435725,1.58454632,127.48,127.41,0.56001927]
[1767341435916,92.76,127.47,127.41,0.56001927]
[1767341436723,0.05421326,127.45,127.43,0.05838144]
[1767341437822,7.12551326,127.45,127.43,0.05838144]
[1767341438630,0.05421326,127.45,127.43,0.05838144]
[1767341441240,1.5348268,127.51,127.44,0.56001927]
[1767341441420,92.76,127.5,127.44,0.56001927]
[1767341442035,99.8287,127.5,127.44,7.63181927]
[1767341442229,0.05474547,127.48,127.46,0.0496073]
[1767341444832,109.9257,127.54,127.46,2.14445337]
[1767341445027,1.5348268,127.54,127.47,0.56001927]
[1767341445225,92.76,127.53,127.47,0.56001927]
[1767341445427,7.0674,127.52,127.47,0.56001927]
[1767341446139,7.0674,127.52,127.48,0.05052011]
[1767341447238,1.5348268,127.52,127.48,0.05052011]
[1767341447435,1.5348268,127.51,127.43,2.09484607]
[1767341447637,94.2948268,127.51,127.44,0.56001927]
[1767341448440,0.05182891,127.49,127.46,0.05919341]
[1767341448641,7.12092891,127.49,127.46,0.05919341]
[1767341448835,1.58665571,127.49,127.46,0.05919341]
[1767341449843,7.0698,127.48,127.42,2.09484607]
[1767341450038,1.5348268,127.49,127.42,0.56001927]
[1767341450233,1.5348268,127.48,127.42,0.56001927]
[1767341450843,0.05748472,127.46,127.44,0.05511589]
[1767341461649,7.12838472,127.46,127.44,0.05511589]
[1767341461844,0.05748472,127.46,127.38,0.586419]
[1767341462042,2.39750446,127.45,127.38,0.586419]
[1767341462744,0.04977394,127.43,127.4,0.06000062]
[1767341465250,7.12247394,127.43,127.4,0.06000062]
[1767341467154,7.073,127.42,127.4,0.06000062]
[1767341467556,0.04977394,127.43,127.4,0.06000062]
[1767341467854,7.12217394,127.43,127.4,0.06000062]
[1767341469151,0.04977394,127.43,127.4,0.06000062]
[1767341470962,7.0731,127.42,127.37,0.586419]
[1767341472064,7.0731,127.42,127.38,0.05220986]
[1767341474256,0.04977394,127.43,127.38,0.05220986]
[1767341474476,7.0737,127.41,127.38,0.05220986]
[1767341480467,202.8066,127.42,127.33,0.586419]
[1767341480772,92.78,127.41,127.34,0.586419]
[1767341481171,99.854,127.41,127.36,0.586419]
[1767341481572,0.05898548,127.4,127.37,0.05162799]
[1767341481772,7.13318548,127.4,127.37,0.05162799]
[1767341492389,7.0747,127.39,127.37,0.05162799]
[1767341492688,7.0747,127.39,127.34,0.61308284]
[1767341493590,7.0747,127.39,127.35,0.05205314]
[1767341494186,0.05898548,127.4,127.35,0.66513598]
[1767341495487,0.05898548,127.4,127.35,7.74193598]
[1767341497889,0.05898548,127.4,127.36,7.0762]
[1767341500197,0.05898548,127.4,127.36,7.68928284]
[1767341502899,2.39750446,127.46,127.38,0.61308284]
[1767341503099,92.8,127.45,127.38,0.61308284]
[1767341503895,0.05623649,127.43,127.4,0.0588405]
[1767341507800,0.05623649,127.43,127.4,0.67192334]
[1767341508103,95.19750446,127.46,127.4,0.67192334]
[1767341508804,7.0713,127.45,127.4,0.67192334]
[1767341509005,0.04996992,127.44,127.4,0.67192334]
[1767341520814,1.58493727,127.44,127.4,0.67192334]
[1767341521110,1.58493727,127.44,127.37,1.53496735]
[1767341521111,1.53496735,127.42,127.38,0.60967432]
[1767341521502,1.53496735,127.42,127.36,7.68587432]
[1767341521699,1.53496735,127.41,127.36,7.68587432]
[1767341522115,0.0508758,127.4,127.37,0.05673992]
[1767341538234,7.1252758,127.4,127.37,0.05673992]
[1767341538428,7.1252758,127.4,127.35,0.60967432]
[1767341539429,7.1252758,127.4,127.36,0.05604218]
[1767341542132,7.0747,127.39,127.36,0.05604218]
[1767341554241,7.1249758,127.4,127.36,0.05604218]
[1767341565551,1.53496735,127.43,127.37,0.55519766]
[1767341566655,0.05870296,127.41,127.39,0.05356793]
[1767341567055,94.35496735,127.45,127.39,0.05356793]
[1767341567757,7.0723,127.44,127.39,0.05356793]